Cogmind - Beta 15 @@@ ROGUE MODE // 2025.05.11 @ 00:46:10 Player: gorb Result: Self-destructed Performance ------------- Evolutions (1) 500 Regions Visited (2) 400 Robots Destroyed (11) 55 Value Destroyed (241) 241 Prototype IDs (1) 20 Alien Tech Used (0) 0 Bonus (0) 0 TOTAL SCORE: 1216 Bonus ------- None Cogmind --------- Core Integrity 139/400 Matter 300/300 Energy 100/100 System Corruption 1% Temperature Cool (15) Movement Core (100) Ox1 Location -9/Materials Parts ------- > --- POWER (1) -------- (None) > --- PROPULSION (4) --- (None) > --- UTILITY (2) ------ Small Storage Unit > --- WEAPON (2) ------- (None) > --- INVENTORY (8) ---- Ion Engine Ion Engine Light Ion Engine Weight Redist. System Small Laser Peak State ------------ > --- POWER ------------ Ion Engine > --- PROPULSION ------- Wheel Compact Wheel Flight Unit Flight Unit > --- UTILITY ---------- Small Storage Unit > --- WEAPON ----------- Improved Medium Laser > --- INVENTORY -------- Ion Engine Light Ion Engine Weight Redist. System Small Laser [Rating: 9] Favorites ----------- Power Ion Engine Engine Ion Engine Propulsion Aluminum Leg Leg Aluminum Leg Wheel Wheel Flight Unit Flight Unit Utility Small Storage Unit Storage Small Storage Unit Weapon EM Pulse Gun Energy Gun EM Pulse Gun Build | -11 -10 -9 ------- Run | Yrd Mat Mat Slots Evolved 2 | . . 2 Power . | . . . Propulsion 2 | . . 2 Utility . | . . . Weapon . | . . . Parts Attached 13 | 3 4 6 Power 1 | . 1 . Engine 1 | . 1 . Core . | . . . Reactor . | . . . Propulsion 7 | 2 . 5 Treads . | . . . Leg 2 | 2 . . Wheel 2 | . . 2 Hover . | . . . Flight 3 | . . 3 Utility 2 | 1 1 . Device . | . . . Storage 2 | 1 1 . Processor . | . . . Hackware . | . . . Protection . | . . . Artifact . | . . . Weapon 3 | . 2 1 Energy Gun 3 | . 2 1 Energy Cannon . | . . . Ballistic Gun . | . . . Ballistic Cannon . | . . . Launcher . | . . . Special Weapon . | . . . Impact Weapon . | . . . Slashing Weapon . | . . . Piercing Weapon . | . . . Special Melee Weapon . | . . . Unidentified Prototypes 1 | . . 1 Corrupted Parts 1 | . . 1 System Corruption 1 | . . 1 Parts Lost 9 | . . 9 Power 1 | . . 1 Propulsion 5 | . . 5 Utility . | . . . Weapon 3 | . . 3 Highest Loss Streak 5 | . . 5 To Critical Strikes . | . . . Average Backups 5 | 4 5 5 Power 1 | 1 1 2 Propulsion 1 | 1 2 1 Utility . | . . . Weapon 1 | 2 1 1 Tool/Special . | . . . Unused Backups 4 | . . 4 Power 2 | . . 2 Propulsion . | . . . Utility 1 | . . 1 Weapon 1 | . . 1 Tool/Special . | . . . Average Slot Usage (%) 64 | . 69 58 Engine 9 | . 9 9 Leg 19 | . 26 10 Wheel 2 | . . 6 Flight 2 | . . 4 Storage 12 | . 14 11 Energy Gun 17 | . 19 15 Peak Build Rating 9 | 3 6 9 Average Rating 5 | 2 5 6 On Entrance 3 | . 3 6 Naked Turns . | . . . Heaviest Build 14 | 5 14 14 Greatest Support 26 | 20 20 26 Greatest Overweight (x) 3 | . 2 3 Average Overweight (x) . | . . . Largest Inventory Capacity 25 | 8 25 8 Average Capacity 7 | 6 8 8 Most Carried 8 | 7 8 7 Average Carried 5 | 5 4 5 Final Capacity 8 | 8 8 8 Final Carried 7 | 7 5 5 Class Distribution -------------------- 100% | Mutant Dominant Class ---------------- Mutant | -10/Materials Mutant | -9/Materials Resources | -11 -10 -9 ----------- Run | Yrd Mat Mat Matter Collected 362 | 230 46 86 Remotely . | . . . Salvage Created 330 | . 126 204 Parts 18 | . 5 13 Haulers Intercepted . | . . . Recyclers Shooed . | . . . Parts Field Recycled . | . . . Retrieved Matter . | . . . Parts Self-Destructed . | . . . Prevented . | . . . Kills | -11 -10 -9 ------- Run | Yrd Mat Mat Combat Hostiles Destroyed 10 | . 3 7 Guns 9 | . 2 7 AOE 1 | . 1 . Classes Destroyed 3 | . 2 1 Recycler 1 | . 1 . Swarmer 7 | . 3 4 Grunt 3 | . . 3 Best Kill Streak 4 | . 4 4 Combat Bots Only 4 | . 3 4 Max Kills in Single Turn 2 | . 2 1 Gunslinging . | . . . Exploded 1 | . 1 . Melee . | . . . Uniques/NPCs Destroyed . | . . . Combat | -11 -10 -9 -------- Run | Yrd Mat Mat Hostile Shots Fired 108 | . 15 93 Missed 36 | . 7 29 Hits 72 | . 8 64 Projectile 72 | . 8 64 Critical Strikes 1 | . . 1 Damage Taken 911 | . 151 760 Core 288 | . 27 261 Absorbed by Shields . | . . . Core Remaining (%) 94 | 100 89 . Volleys Fired 34 | . 4 30 Largest 2 | . 2 2 Hottest 80 | . 80 80 Shots Fired 41 | . 8 33 Gun 41 | . 8 33 Cannon . | . . . Launcher . | . . . Special . | . . . Kinetic . | . . . Thermal 25 | . . 25 Explosive . | . . . Electromagnetic 16 | . 8 8 Robot Hit Streak 7 | . 2 7 Robot Miss Streak 4 | . 2 4 Penetration Max . | . . . Secondary Targets 1 | . 1 . Max Gunslinging Chain 1 | . 1 . Shots Hit Robots 24 | . 3 21 Core Hits 12 | . 4 8 Critical Kills . | . . . Critical Parts Destroyed . | . . . Critical Strikes 2 | . . 2 Burn 2 | . . 2 Melee Attacks . | . . . Impact . | . . . Slashing . | . . . Piercing . | . . . Sneak Attacks . | . . . Combat Hostiles . | . . . Follow-up Attacks . | . . . Damage Inflicted 521 | . 169 352 Guns 383 | . 35 348 Cannons . | . . . Explosions 133 | . 133 . Melee . | . . . Ramming 5 | . 1 4 Kinetic . | . . . Thermal 343 | . 38 305 Explosive 95 | . 95 . Electromagnetic 78 | . 35 43 Impact . | . . . Slashing . | . . . Piercing . | . . . Highest Corruption 1 | . . 1 Average Corruption 1 | . . 1 Corruption Purged . | . . . Corruption Blocked . | . . . Overload Shots . | . . . Overflow Damage . | . . . Projectiles . | . . . Explosions . | . . . Melee . | . . . Knockbacks . | . . . Impact . | . . . Kinetic . | . . . Secondary . | . . . Self-Inflicted Damage 85 | . 83 2 Shots 1 | . 1 . Rammed 1 | . . 1 Targets Rammed 3 | . 2 1 Kicked 2 | . 2 . Crushed . | . . . Highest Temperature 239 | . 54 239 Average Temperature 73 | . 25 81 Received Heat Transfer 318 | . . 318 Siege Activations . | . . . Martial Activations . | . . . Shielding Activations . | . . . Robots Disrupted . | . . . Combat Hostiles . | . . . Robots Corrupted . | . . . Combat Hostiles . | . . . Parts Fried . | . . . Impact Corruptions . | . . . Robots Melted . | . . . Combat Hostiles . | . . . Parts Melted 1 | . . 1 Heat Transferred 864 | . 50 814 Parts Sabotaged . | . . . Parts Stolen . | . . . Parts Stripped . | . . . Power Chain Reactions 1 | . 1 . Alert | -11 -10 -9 ------- Run | Yrd Mat Mat Maximum Alert Level . | . . . Low Security (%) 100 | 100 100 100 Level 1 . | . . . Level 2 . | . . . Level 3 . | . . . Level 4 . | . . . Level 5 . | . . . High Security . | . . . Max Security . | . . . Peak Influence 136 | . 136 115 Initial 8 | . . 8 Average 46 | . 61 37 Influence Increases 343 | . 151 192 Destroy 0b10 Robot/C 200 | . 60 140 Destroy 0b10 Robot/NC 5 | . 5 . Destroy Leader 40 | . 10 30 Successful Hack 7 | . . 7 Disable Machine 75 | . 60 15 Destroy Structure 16 | . 16 . Influence Decreases 318 | . 130 188 Entered New Map 13 | . . 13 Time Decay 215 | . 130 85 Lost Part 90 | . . 90 Squads Dispatched 1 | . . 1 Investigation . | . . . Extermination . | . . . Reinforcement 1 | . . 1 Assault . | . . . Garrison . | . . . Intercept . | . . . Searches Triggered . | . . . Construction Impeded . | . . . Haulers Reinforced . | . . . Active Scanning Responses . | . . . Cargo Convoy Interrupts . | . . . Stealth | -11 -10 -9 --------- Run | Yrd Mat Mat Distress Signals 1 | . 1 . Communications Jammed . | . . . Distress Signals . | . . . Times Spotted 22 | . 8 14 Peak Tracking Total 7 | . 5 7 Tactical Retreats . | . . . Traps | -11 -10 -9 ------- Run | Yrd Mat Mat Traps Triggered 3 | . 3 . Indirectly . | . . . Trap Hack Attempts . | . . . Triggered . | . . . Disarmed . | . . . Reprogrammed . | . . . Reused . | . . . Traps Extracted . | . . . Installed . | . . . Triggered . | . . . Machines | -11 -10 -9 ---------- Run | Yrd Mat Mat Machines Disabled 5 | . 4 1 Max in Single Turn 3 | . 3 1 Machines Repaired . | . . . Machines Dismantled . | . . . Machines Sabotaged . | . . . Overloaded Fab Kills . | . . . Hacking | -11 -10 -9 --------- Run | Yrd Mat Mat Machines Accessed 3 | . 1 2 Terminals 3 | . 1 2 Fabricators . | . . . Repair Stations . | . . . Recycling Units . | . . . Scanalyzers . | . . . Garrison Access . | . . . Total Hacks 8 | . 2 6 Successful 5 | . 1 4 Failed 3 | . 1 2 Catastrophic 1 | . 1 . Database Lockouts . | . . . Manual . | . . . Terminals 8 | . 2 6 Fabricators . | . . . Repair Stations . | . . . Recycling Units . | . . . Scanalyzers . | . . . Garrison Access . | . . . Terminal Hacks 5 | . 1 4 Record 3 | . . 3 Branch Access Points 2 | . 1 1 Fabricator Hacks . | . . . Repair Station Hacks . | . . . Recycling Unit Hacks . | . . . Scanalyzer . | . . . Garrison Access Hacks . | . . . Unauthorized Hacks . | . . . Terminals . | . . . Fabricators . | . . . Repair Stations . | . . . Recycling Units . | . . . Scanalyzers . | . . . Garrison Access . | . . . Data Cores Recovered . | . . . Used . | . . . Hacking Detections . | . . . Full Trace Events . | . . . Feedback Events . | . . . Feedback Blocked . | . . . Robot Schematics Acquired . | . . . Robots Built . | . . . Authchips . | . . . Time . | . . . Total Robot Build Rating . | . . . Part Schematics Acquired . | . . . Parts Built . | . . . Authchips . | . . . Time . | . . . Total Part Build Rating . | . . . Parts Repaired . | . . . Time . | . . . Parts Recycled . | . . . Recycled Matter . | . . . Retrieved Matter . | . . . Retrieved Components . | . . . Parts Scanalyzed . | . . . Part Schematics Acquired . | . . . Parts Damaged . | . . . Bothacking | -11 -10 -9 ------------ Run | Yrd Mat Mat Used RIF Installer . | . . . Robots Hacked . | . . . Non-combat . | . . . Combat . | . . . Robot Hacks Applied . | . . . Relay Couplers Released . | . . . Fabnet Peak Effective % . | . . . Robots Rewired . | . . . Allies Hacked . | . . . Hacks Repelled . | . . . Allies | -11 -10 -9 -------- Run | Yrd Mat Mat Total Allies . | . . . Largest Group . | . . . Highest-Rated Group . | . . . Highest-Rated Ally . | . . . Total Orders . | . . . Ally Attacks . | . . . Total Damage . | . . . Kills . | . . . Allies Corrupted . | . . . Allies Melted . | . . . Intel | -11 -10 -9 ------- Run | Yrd Mat Mat Active Infowar (turns) . | . . . Robot Analysis Total . | . . . Derelict Logs Recovered . | . . . Drone Launches . | . . . Drone Recoveries . | . . . Exploration | -11 -10 -9 ------------- Run | Yrd Mat Mat Turns Passed 693 | 63 351 279 Spaces Moved 505 | 52 260 193 Core 25 | 15 9 1 Treads . | . . . Legs 384 | 37 251 96 Wheels 34 | . . 34 Hover . | . . . Flight 62 | . . 62 Fastest Speed 37 | 50 100 37 Average Speed 110 | 99 120 100 Slowest Speed 200 | 120 190 200 Overloaded Moves . | . . . Propulsion Burnouts . | . . . Robots Hopped . | . . . Potential Cave-ins . | . . . Cave-ins Triggered . | . . . Exploration Rate (%) 21 | 3 40 21 Regions Visited 2 Branch Regions . Pre-discovered Areas . | . . . Known Exits Taken . | . . . Unknown Exits Taken 2 | 1 1 . Scrap Searched . | . . . Spaces Dug . | . . . Terrain Destroyed 17 | . 17 . Melee . | . . . Projectile . | . . . AOE 17 | . 17 . Terrain Rammed . | . . . Walls Destroyed . | . . . Machines Disabled . | . . . Actions | -11 -10 -9 --------- Run | Yrd Mat Mat Total 594 | 61 287 246 Wait 13 | . 5 8 Move 503 | 51 259 193 Hop . | . . . Pick Up 19 | 7 6 6 Fast Attach 4 | 3 1 . Attach 13 | . 7 6 Detach . | . . . Swap 2 | . 2 . Drop 3 | . 1 2 Fire 34 | . 4 30 Melee . | . . . Ram 1 | . . 1 Kick 2 | . 2 . Crush . | . . . Escape Stasis . | . . . Rewire . | . . . Trap . | . . . Miscellaneous . | . . . Route ------- -11/Scrapyard -10/Materials (discovered 2 exits: *Mat / Min) -9/Materials (discovered 1 exit: Min) History --------- Turn | Location | Event 15 | -11/Scrapyard | Discovered new exit (range 15) 64 | -11/Scrapyard | Entered Materials 227 | -10/Materials | Identified exit to Mines 301 | -10/Materials | Build established: Mutant 406 | -10/Materials | Discovered new exit (range 8) 415 | -10/Materials | Entered another Materials area 415 | -9/Materials | Evolved 2 slots: Propulsion x2 460 | -9/Materials | Identified exit to Mines 580 | -9/Materials | Lost 4 parts (2n2w) 689 | -9/Materials | Core integrity fell below 50% 694 | -9/Materials | Self-destructed Last Messages --------------- G-34 Mercenary destroyed. Acquired 21 matter. U-05 Engineer works on Matter Filter. Slammed into O-16 Technician. Acquired Flight Unit. Dropped Com. Wheel. Dropped Wheel. Acquired 16 matter. Acquired Corrupted Flight Unit. Integrated Corrupted Flight Unit (+1). K-01 Serf collects debris. Acquired Ion Engine. K-01 Serf collects debris. Acquired 14 matter. K-01 Serf collects debris. Flight Unit destroyed. Ion Engine destroyed. Flight Unit destroyed. Imp. Medium Laser destroyed. Flight Unit destroyed. Map ----- +----------------------------------------------------+ | ???????????????????????????????????????? | | ???????????>???????????????????????????? | | ???????????????????????????????????????? | | ???????????????????????????????????????? | | ???????????????????????????????????????? | | ???????????????????????????????????????? | | ???????????????????????????????????????? | | ???????????????????????????????????????? | | ???????????????????????????????????????? | | ???????????????????????????????????????? | | ???????????????????????????????????????? | | ?????????????##+####??##???????????????? | | ????????????? ##??????????????? | | ?????????????? "#??????????????? | | ?????????????? """ T#???? ?????????? | | ??????????????# """ "#?? ?????????? | | ??????????????# """ ## #??????????? | | ???????######## ##?????????? | | ?????" """" # ???????? | | ???""" """" # #??????????? | | ? """" """" # #######??????????????? | | # # #????????????????????? | | # ! + ############?????????? | | # # ## " #?????????? | | ??# ###########ggg## """"""" #?????????? | | ????????###### @ u # """"""" #?????????? | | ????????# # """"""" #?????????? | | ????????# + """"""" #?????????? | | ????????# Y # """"""" #?????????? | | ????????# ## # % ! #?????????? | | ????????# ########%%[[ #?????????? | | ######### #??????#+###+#####?????????? | | # # #??????# #?#[#?????????????? | | # # #??????# #?# #?????????????? | | # # #??????# #?# #?????????????? | | #""" # ######?# #?# #?????????????? | | #""" # #?# #?# #?????????????? | | #""" + #?# ###/########??????? | | # ! # #?# ##=%[ T #??????? | | #""" ### #?# ##= " #??????? | | #""" #?# ###%## """ #??????? | | #""" ### # """ #??????? | | # + + #??????? | | ############## # #??????? | | ?????????????### # #??????? | | ???????????????# # #??????? | | ???????????????# ###########??????? | | ???????????????# #????????????????? | | ???????????????# #????????????????? | | ???????????????# #### #????????????????? | +----------------------------------------------------+ Best States ------------- Heat Dissipation 28 Energy Generation 10 Energy Capacity 250 Matter Stores 300 Matter Capacity 300 Sight Range 16 Terrain Scan Density 10 Evasion (%) 62 Item Schematics ----------------- None Robot Schematics ------------------ None Fabricated ------------ Nothing Repaired ---------- Nothing Alien Tech Used ----------------- None Achievements -------------- None Challenges ------------ None Game ------ Seed VariableMiningCanceller Manual? 0 Play Time 00:08:57 Cumulative 27.4 hours Start 2025.05.11 @ 00:33:15 End 2025.05.11 @ 00:46:10 Sessions 1 Manual Loads 0 Difficulty Rogue Special Mode None Game No. 41 Rogue 39 Adventurer 0 Explorer 2 Win Type - Total 0 Types 0/0/0/0/0/0/0/0/0/0 Lore% 10 Gallery% 21 Achievement% 20 Wizard Run 0 Options --------- Layout 1 ASCII 0 Keyboard 0 Movement Mouse Keybinds 0 Fullscreen 1 Font 24/Smallcaps Map View 50x35 Zoom Use 0% Tactical HUD 0 Map Filters NONE Filters NONE Steam 1 RUN: 9c81aaff-ae5f-430b-930e-11acf0135f40